bitfinex-derivatives/quotes_SOLF0:USTF0_20241203
["timestamp","ask_amount","ask_price","bid_price","bid_amount"]
[1733193313477,2.2001,227.23,227.2,16.35786254]
[1733193313776,2.52,227.29,227.2,16.35786254]
[1733193314169,2.52,227.29,227.26,0.02]
[1733193314570,2.1997,227.26,227.25,0.02]
[1733193315072,2.52,227.29,227.2,16.35786254]
[1733193315274,13.21,227.7,227.26,32.71572508]
[1733193315578,13.2,227.8,227.42,16.35786254]
[1733193315579,4.3915,227.68,227.42,16.35786254]
[1733193315773,2.14972113,227.8,227.59,16.35786254]
[1733193315974,7.2294,227.79,227.59,16.35786254]
[1733193316177,16.35786254,227.8,227.59,16.35786254]
[1733193316178,4.3297,227.74,227.59,16.35786254]
[1733193316376,4.3297,227.74,227.63,16.35786254]
[1733193316777,2.1955,227.7,227.67,16.35786254]
[1733193316978,2.84,227.73,227.67,16.35786254]
[1733193317572,2.1956,227.69,227.67,16.35786254]
[1733193318176,2.84,227.73,227.67,16.35786254]
[1733193318573,6.7564,227.87,227.71,16.35786254]
[1733193318780,2.84,227.86,227.71,16.35786254]
[1733193318973,2.84,227.86,227.59,16.35786254]
[1733193318974,2.1953,227.72,227.67,16.35786254]
[1733193319180,2.84,227.73,227.63,16.37786254]
[1733193319380,2.84,227.72,227.64,2.19884543]
[1733193319680,2.84,227.72,227.63,16.35786254]
[1733193319681,2.1955,227.7,227.65,2.19884543]
[1733193319979,2.84,227.72,227.63,16.37786254]
[1733193320182,2.84,227.72,227.64,3.95791635]
[1733193320385,2.84,227.72,227.65,3.95791635]
[1733193320581,2.84,227.72,227.63,0.02]
[1733193320782,16.35786254,227.78,227.59,16.35786254]
[1733193320983,2.1964,227.61,227.6,3.97873777]
[1733193321186,2.1964,227.61,227.59,16.37786254]
[1733193322088,2.1964,227.61,227.6,5.07834172]
[1733193322282,2.1964,227.61,227.6,5.05834172]
[1733193322678,2.1964,227.61,227.59,0.02]
[1733193322878,2.1964,227.61,227.55,16.35786254]
[1733193322879,2.84,227.64,227.57,0.02]
[1733193323082,2.84,227.64,227.58,1.09980169]
[1733193323284,2.84,227.64,227.55,16.35786254]
[1733193323485,2.1968,227.56,227.55,16.35786254]
[1733193323688,2.84,227.64,227.56,1.75968584]
[1733193323882,2.84,227.64,227.55,16.35786254]
[1733193324085,2.84,227.64,227.5,0.02]
[1733193324286,2.1967,227.58,227.57,1.09974902]
[1733193324481,2.1967,227.58,227.56,18.11748061]
[1733193324686,2.1967,227.58,227.57,1.09974902]
[1733193324886,2.84,227.64,227.57,1.09974902]
[1733193325186,2.84,227.85,227.61,16.35786254]
[1733193325382,2.84,227.85,227.69,16.35786254]
[1733193325590,19.19786254,227.85,227.65,16.35786254]
[1733193325787,19.19786254,227.85,227.66,1.0993412]
[1733193325986,2.84,227.85,227.69,16.35786254]
[1733193326190,6.753,227.94,227.73,16.35786254]
[1733193326393,16.35786254,227.93,227.73,16.35786254]
[1733193326693,25.95086254,227.94,227.73,16.35786254]
[1733193326891,2.1951,227.75,227.73,16.35786254]
[1733193327494,2.84,227.8,227.73,16.35786254]
[1733193327992,2.1951,227.75,227.73,16.35786254]
[1733193330290,2.84,227.8,227.73,16.35786254]
[1733193330594,2.84,227.8,227.61,2.84]
[1733193330595,2.84,227.8,227.75,16.35786254]
[1733193331401,2.1949,227.76,227.75,16.35786254]
[1733193331793,45.74,228.02,227.75,16.35786254]
[1733193332100,2.84,227.97,227.84,16.35786254]
[1733193332296,4.9971,227.97,227.84,16.35786254]
[1733193333093,2.194,227.85,227.84,16.35786254]
[1733193333293,2.84,227.87,227.8,16.35786254]
[1733193333598,2.84,227.86,227.8,16.35786254]
[1733193333798,2.1944,227.81,227.72,2.2039814]
[1733193333999,2.1944,227.81,227.71,4.3885]
[1733193334000,2.84,227.89,227.8,16.35786254]
[1733193334299,2.84,227.9,227.84,16.35786254]
[1733193334501,2.194,227.85,227.84,16.35786254]
[1733193335202,2.1571,227.97,227.84,16.35786254]
[1733193335393,2.84,227.96,227.84,16.35786254]
[1733193336699,2.194,227.85,227.84,16.35786254]
[1733193337605,2.1944,227.81,227.8,16.35786254]
[1733193337806,2.84,227.86,227.8,17.45648524]
[1733193338003,2.84,227.86,227.8,16.35786254]
[1733193338404,2.84,227.86,227.81,1.09857395]
[1733193338405,2.1941,227.85,227.81,1.09857395]
[1733193338604,2.84,227.86,227.8,16.35786254]
[1733193338804,2.84,227.86,227.81,1.0985615]
[1733193339002,2.84,227.86,227.8,16.35786254]
[1733193339302,2.84,227.86,227.76,16.35786254]
[1733193339501,2.84,227.86,227.77,2.85649313]
[1733193339708,2.84,227.86,227.76,16.35786254]
[1733193339905,2.1947,227.78,227.77,1.09874563]
[1733193340107,2.84,227.86,227.77,1.09874563]
[1733193340305,2.84,227.86,227.76,16.35786254]
[1733193340500,2.84,227.86,227.77,1.09877425]
[1733193340705,2.84,227.86,227.76,16.35786254]
[1733193340905,2.84,227.86,227.77,1.09877248]
[1733193341106,2.1947,227.78,227.76,16.35786254]
[1733193341306,2.84,227.86,227.77,1.09877676]
[1733193341507,2.84,227.86,227.8,16.35786254]
[1733193342702,2.1944,227.81,227.8,16.35786254]
[1733193343107,2.84,227.86,227.76,16.35786254]
[1733193343309,2.84,227.86,227.71,6.5395]
[1733193343509,2.84,227.86,227.72,2.85706308]
[1733193343710,2.3546,227.85,227.74,16.35786254]
[1733193343911,2.195,227.75,227.74,16.35786254]
[1733193344105,2.84,227.76,227.7,16.35786254]
[1733193344408,2.3546,227.85,227.71,1.09891539]
[1733193344409,2.84,227.75,227.71,1.09891539]
[1733193344606,4.5556,227.85,227.7,16.35786254]
[1733193344607,2.84,227.74,227.7,16.35786254]
[1733193344808,2.84,227.73,227.7,16.35786254]
[1733193345210,2.1953,227.72,227.7,16.35786254]
[1733193345409,2.84,227.73,227.7,16.35786254]
[1733193346108,2.84,227.73,227.66,16.35786254]
[1733193346313,2.84,227.73,227.7,16.35786254]
[1733193347110,2.86,227.85,227.71,5.05469088]
[1733193347315,2.86,227.85,227.8,16.35786254]
[1733193348918,2.1944,227.81,227.8,16.35786254]
[1733193349113,2.1944,227.81,227.8,17.45656195]
[1733193349518,7.034,227.94,227.8,17.45656195]
[1733193349519,2.86,227.96,227.8,35.5722282]
[1733193349822,2.86,227.96,227.84,16.35786254]
[1733193350017,2.86,227.96,227.85,1.09869941]
[1733193350217,2.86,227.96,227.86,1.0984179]
[1733193350411,2.86,227.96,227.84,16.35786254]
[1733193350717,2.86,227.96,227.85,1.09841474]
[1733193350911,2.86,227.96,227.86,1.09841474]
[1733193351215,2.86,227.96,227.84,16.35786254]
[1733193351414,3.8711,227.97,227.92,16.35786254]
[1733193351614,1.0111,227.97,227.92,16.35786254]
[1733193352116,2.1933,227.93,227.92,16.35786254]
[1733193352315,1.0111,227.97,227.92,16.35786254]
[1733193352716,2.86,227.98,227.96,16.35786254]
[1733193353021,2.1929,227.97,227.96,16.35786254]
[1733193353218,2.86,228.01,227.96,16.35786254]
[1733193353922,2.1929,227.97,227.96,16.35786254]
[1733193354117,2.86,228.01,227.96,16.35786254]
[1733193354618,2.1929,227.97,227.96,16.35786254]
[1733193354817,2.86,228.01,227.96,16.35786254]
[1733193356119,2.86,228.01,227.74,4.19666216]
[1733193356319,16.35786254,227.94,227.75,2.1960411]
[1733193356515,16.07,228.01,227.57,28.76695209]
[1733193356516,2.1966,227.59,227.57,28.76695209]
[1733193356821,2.86,227.81,227.58,51.50480286]
[1733193357023,2.86,227.82,227.73,16.35786254]
[1733193357320,2.86,227.82,227.72,16.35786254]
[1733193357820,2.1952,227.73,227.72,16.35786254]
[1733193358919,2.1952,227.73,227.66,2.86]
[1733193358920,2.1956,227.69,227.68,16.35786254]
[1733193360116,16.35786254,227.83,227.58,16.35786254]
[1733193360320,16.35786254,227.79,227.58,16.35786254]
[1733193360619,16.35786254,227.75,227.54,16.35786254]
[1733193360814,2.86,227.74,227.54,16.35786254]
[1733193361418,2.1956,227.69,227.57,0.24755]
[1733193361618,2.86,227.68,227.57,0.24755]
[1733193361823,2.86,227.67,227.57,0.24755]
[1733193362020,2.86,227.66,227.57,0.24755]
[1733193362215,2.1967,227.58,227.57,0.24755]
[1733193362421,2.86,227.58,227.48,16.35786254]
[1733193362622,2.86,227.58,227.44,16.35786254]
[1733193362916,2.86,227.58,227.48,16.35786254]
[1733193363619,2.86,227.58,227.48,26.53963359]
[1733193365021,2.1975,227.49,227.48,26.53963359]
[1733193365822,2.1986,227.38,227.37,26.53963359]
[1733193366020,2.86,227.49,227.37,26.53963359]
[1733193366318,2.86,227.49,227.33,26.53963359]
[1733193366719,2.199,227.34,227.33,26.53963359]
[1733193366920,2.86,227.49,227.33,26.53963359]
[1733193367224,13.21,227.67,227.26,26.53963359]
[1733193367225,3.1,227.67,227.46,26.53963359]
[1733193367418,2.197,227.54,227.53,26.53963359]
[1733193368920,2.1974,227.5,227.49,26.53963359]
[1733193370219,2.1974,227.5,227.49,16.5797044]
[1733193372118,2.1974,227.5,227.49,10.61061049]
[1733193372318,2.1974,227.5,227.49,4.64164081]
[1733193372525,4.7843,227.7,227.49,4.64164081]
[1733193372726,3.1,227.69,227.55,26.53963359]
[1733193373225,2.1968,227.56,227.55,17.47502038]
[1733193373618,3.1,227.65,227.6,26.53963359]
[1733193373819,4.7843,227.7,227.6,26.53963359]
[1733193374024,2.1964,227.61,227.6,26.53963359]
[1733193374219,2.1964,227.61,227.6,17.48428231]
[1733193374425,3.1,227.66,227.6,17.48428231]
[1733193375329,3.1,227.66,227.56,26.53963359]
[1733193375721,3.1,227.66,227.52,26.53963359]
[1733193375927,2.1971,227.53,227.52,26.53963359]
[1733193376826,3.1,227.59,227.52,26.53963359]
[1733193378226,2.1971,227.53,227.52,26.53963359]
[1733193380227,2.1975,227.49,227.48,26.53963359]
[1733193380930,3.1,227.59,227.48,26.53963359]
[1733193381129,3.1,227.59,227.42,6.5462]
[1733193381428,3.1,227.59,227.49,26.53963359]
[1733193381633,2.1974,227.5,227.49,26.53963359]
[1733193382731,3.1,227.59,227.49,26.53963359]
[1733193383034,3.1,227.59,227.54,26.53963359]
[1733193383737,2.1969,227.55,227.54,26.53963359]
[1733193387637,3.1,227.59,227.48,26.53963359]
[1733193387835,2.1975,227.49,227.48,26.53963359]
[1733193389529,3.1,227.59,227.48,16.33177338]
[1733193390138,16.33177338,227.81,227.48,16.33177338]
[1733193390139,32.69089816,227.85,227.53,16.33177338]
[1733193390342,32.69089816,227.85,227.6,16.33177338]
[1733193390343,12.1093,227.73,227.6,16.33177338]
[1733193391737,2.1964,227.61,227.6,16.33177338]
[1733193392131,3.1,227.64,227.56,16.33177338]
[1733193392333,2.1967,227.57,227.56,16.33177338]
[1733193392834,3.1,227.67,227.56,16.33177338]
[1733193393030,4.3909,227.71,227.6,16.33177338]
[1733193393031,3.1,227.66,227.6,16.33177338]
[1733193393229,306.15074121,227.79,227.64,16.33177338]
[1733193393435,3.1,227.82,227.7,16.33177338]
[1733193393635,3.1,227.82,227.73,26.4828425]
[1733193393840,3.1,227.82,227.73,18.39830072]
[1733193394035,2.1951,227.74,227.73,18.39830072]
[1733193397434,3.1,227.82,227.69,26.4828425]
[1733193397637,2.1955,227.7,227.69,26.4828425]
[1733193398036,3.1,227.82,227.69,26.4828425]
[1733193398239,3.1,227.82,227.73,26.4828425]
[1733193398643,2.1951,227.74,227.73,26.4828425]
[1733193400243,2.1949,227.77,227.73,26.4828425]
[1733193400441,3.0,227.91,227.73,26.4828425]
[1733193400646,4.3856,227.99,227.8,26.4828425]
[1733193400841,3.0,227.98,227.8,26.4828425]
[1733193401044,6.935,227.96,227.8,26.4828425]
[1733193402151,2.1944,227.82,227.74,9.8726]
[1733193402446,6.935,227.96,227.74,9.8726]
[1733193402840,3.0,227.95,227.74,9.8726]
[1733193403038,6.935,227.96,227.74,9.8726]
[1733193403344,3.0,227.95,227.85,26.4828425]
[1733193403748,2.194,227.86,227.85,26.4828425]
[1733193403947,3.0,228.05,227.85,26.4828425]
[1733193404751,9.8936,228.05,227.86,4.5711]
[1733193404948,2.1935,227.91,227.86,4.5711]
[1733193405245,1e-08,227.91,227.86,4.5711]
[1733193405742,1e-08,227.91,227.85,26.4828425]
[1733193405743,2.1939,227.87,227.85,26.4828425]
[1733193407446,1e-08,227.91,227.85,26.4828425]
[1733193407648,1e-08,227.91,227.9,26.4828425]
[1733193408645,2.19350001,227.91,227.9,26.4828425]
[1733193409851,3.0,227.98,227.9,26.4828425]
[1733193410445,2.1934,227.92,227.9,26.4828425]
[1733193412457,2.1935,227.91,227.9,26.4828425]
[1733193413848,3.0,228.01,227.86,26.4828425]
[1733193414050,33.8679425,228.01,227.82,26.4828425]
[1733193414550,2.1942,227.83,227.82,26.4828425]
[1733193415055,3.0,227.92,227.78,26.4828425]
[1733193415256,2.1946,227.79,227.78,26.4828425]
[1733193415449,7.0146,227.91,227.74,26.4828425]
[1733193415450,3.0,227.82,227.74,26.4828425]
[1733193415652,3.0,227.81,227.69,16.302193]
[1733193415851,2.1952,227.73,227.66,2.1958]
[1733193416151,3.0,227.8,227.66,2.1958]
[1733193416351,3.0,227.8,227.73,16.302193]
[1733193416857,2.1951,227.74,227.73,16.302193]
[1733193417051,3.0,227.8,227.73,16.302193]
[1733193417958,2.1951,227.74,227.73,16.302193]
[1733193418153,3.0,227.8,227.73,16.302193]
[1733193419448,2.1951,227.75,227.73,16.302193]
[1733193420954,7.0146,227.91,227.73,16.302193]
[1733193421151,7.0146,227.91,227.7,16.302193]
[1733193421152,7.0146,227.91,227.78,16.302193]
[1733193421356,3.0,227.9,227.78,16.302193]
[1733193421957,3.0,227.9,227.82,16.302193]
[1733193422361,2.1942,227.83,227.82,16.302193]
[1733193422959,3.0,227.9,227.82,16.302193]
[1733193423569,4.6447,227.98,227.83,2.1942]
[1733193423570,3.0,227.95,227.83,2.1942]
[1733193423760,3.0,227.95,227.82,16.302193]
[1733193424162,2.1942,227.83,227.82,16.302193]
[1733193425261,2.1942,227.83,227.71,2.24889108]
[1733193425262,3.0,227.87,227.74,16.302193]
[1733193425456,3.0,227.86,227.74,16.302193]
[1733193425763,16.302193,227.92,227.74,16.302193]
[1733193425764,2.195,227.75,227.74,16.302193]
[1733193427959,2.1954,227.71,227.7,16.302193]
[1733193428267,3.0,227.8,227.7,16.302193]
[1733193428663,3.0,227.8,227.62,2.96]
[1733193428861,3.0,227.8,227.71,16.302193]
[1733193429262,2.1953,227.73,227.71,16.302193]
[1733193429970,3.0,227.8,227.71,16.302193]
[1733193430463,2.1958,227.68,227.67,16.302193]
[1733193434565,2.96,227.72,227.63,16.302193]
[1733193434566,2.1961,227.64,227.63,16.302193]
[1733193434971,2.96,227.65,227.59,16.302193]
[1733193435967,2.1964,227.62,227.59,16.302193]
[1733193436469,2.96,227.65,227.59,16.302193]
[1733193437472,2.96,227.65,227.63,16.302193]
[1733193437667,4.3894,227.79,227.63,16.302193]
[1733193437873,2.96,227.78,227.67,16.302193]
[1733193438268,45.7,227.8,227.67,16.302193]
[1733193438473,2.96,227.79,227.67,16.302193]
[1733193438976,2.1957,227.68,227.67,16.302193]
[1733193439369,2.96,227.71,227.67,16.302193]
[1733193439975,2.1957,227.68,227.67,16.302193]
[1733193440479,2.1951,227.74,227.67,16.302193]
[1733193440670,2.96,227.76,227.72,16.302193]
[1733193441072,45.7,227.8,227.72,16.302193]
[1733193441270,2.96,227.79,227.72,16.302193]
[1733193441670,45.7,227.8,227.72,16.302193]
[1733193441870,2.96,227.78,227.72,16.302193]
[1733193442076,45.7,227.8,227.72,16.302193]
[1733193442272,2.96,227.79,227.72,16.302193]
[1733193442775,2.195,227.75,227.72,16.302193]
[1733193442976,6.982,227.86,227.72,16.302193]
[1733193443273,2.96,227.85,227.76,16.302193]
[1733193443474,2.1946,227.79,227.76,16.302193]
[1733193445381,2.1948,227.77,227.76,16.302193]
[1733193449984,2.1952,227.73,227.72,16.302193]
[1733193451979,6.982,227.86,227.72,16.302193]
[1733193452180,306.15074121,227.94,227.85,16.302193]
[1733193452385,2.96,227.98,227.9,16.302193]
[1733193452582,2.1933,227.93,227.9,11.73260949]
[1733193452880,2.96,227.98,227.9,11.73260949]
[1733193453483,2.96,227.97,227.9,11.73260949]
[1733193453686,2.96,227.96,227.9,11.73260949]
[1733193453980,2.96,227.95,227.86,16.302193]
[1733193454185,2.96,227.94,227.86,16.302193]
[1733193454487,2.96,227.93,227.86,16.302193]
[1733193454684,2.96,227.92,227.86,16.302193]
[1733193454886,2.1937,227.89,227.86,16.302193]
[1733193455184,2.96,227.88,227.86,16.302193]
[1733193455385,2.96,227.87,227.86,16.302193]
[1733193457285,367.38088945,228.05,227.86,32.604386]
[1733193457485,2.9,228.08,228.01,16.302193]
[1733193457690,2.9,228.07,228.01,16.302193]
[1733193457895,2.9,228.06,228.01,16.302193]
[1733193458183,306.15074121,228.18,228.01,16.302193]
[1733193458184,2.9,228.05,228.01,16.302193]
[1733193458388,2.9,228.04,228.01,16.302193]
[1733193458588,2.9,228.03,228.01,16.302193]
[1733193458789,2.9,228.02,228.01,16.302193]
[1733193458987,306.15074121,228.18,228.01,32.604386]
[1733193459184,2.9,228.2,227.96,2.9]
[1733193459384,2.9,228.2,228.11,16.302193]
[1733193459590,2.9,228.2,228.11,11.8541241]
[1733193459786,2.9,228.19,228.11,11.8541241]
[1733193459980,2.9,228.19,228.04,2.3478]
[1733193459981,2.1913,228.15,228.07,16.302193]
[1733193460188,2.9,228.14,228.07,16.302193]
[1733193460382,2.9,228.13,228.07,16.302193]
[1733193460591,2.9,228.12,228.07,16.302193]
[1733193460790,2.9,228.11,228.07,16.302193]
[1733193461084,16.302193,228.24,228.07,16.302193]
[1733193461085,2.9,228.1,228.07,16.302193]
[1733193461285,2.9,228.09,228.07,16.302193]
[1733193461887,2.9,228.09,227.94,2.3478]
[1733193461888,2.9,228.09,228.0,16.302193]
[1733193462086,2.1921,228.05,228.0,16.302193]
[1733193463689,2.192,228.07,228.0,16.302193]
[1733193463991,2.9,228.09,228.0,16.302193]
[1733193464393,2.1925,228.02,228.0,16.302193]
[1733193464588,2.9,228.01,228.0,16.302193]
[1733193465192,2.9,228.01,228.0,12.07451962]
[1733193465587,2.9,228.09,228.0,12.07451962]
[1733193465788,2.9,228.08,228.04,16.302193]
[1733193468494,2.1919,228.07,228.04,16.302193]
[1733193468992,2.9,228.08,228.04,16.302193]
[1733193469193,2.9,228.08,228.0,16.302193]
[1733193469988,2.9,228.08,227.94,7.1458]
[1733193469989,2.9,228.1,228.04,16.302193]
[1733193471000,4.7102,228.14,228.04,16.302193]
[1733193471001,2.1916,228.11,228.04,16.302193]
[1733193471295,2.9,228.16,228.08,16.302193]
[1733193472496,2.1914,228.13,228.08,16.302193]
[1733193472795,0.5631,228.2,228.09,1.09714425]
[1733193472993,0.5631,228.2,228.08,16.302193]
[1733193472994,2.1911,228.16,228.1,1.09705657]
[1733193473289,2.1911,228.16,228.11,1.09705657]
[1733193473490,2.9,228.18,228.12,1.09705657]
[1733193473688,2.9,228.18,228.06,4.6818]
[1733193473888,2.9,228.18,228.07,2.85262289]
[1733193474090,2.1916,228.11,228.08,1.09716265]
[1733193474295,2.9,228.12,228.09,1.09716265]
[1733193474492,2.9,228.11,228.03,0.02]
[1733193474694,2.9,228.11,227.94,16.302193]
[1733193474695,2.9,228.1,227.94,16.302193]
[1733193474894,2.9,228.1,227.95,3.95149396]
[1733193475090,2.9,228.1,227.94,16.302193]
[1733193475091,2.9,228.1,227.96,1.75621954]
[1733193475290,2.9,228.1,227.94,16.302193]
[1733193475795,2.9,228.1,227.9,16.302193]
[1733193476198,19.202193,228.1,227.9,16.302193]
[1733193476399,2.1932,227.94,227.9,16.302193]
[1733193476996,2.9,227.98,227.88,2.2486]
[1733193477299,2.9,227.98,227.82,2.4072]
[1733193477500,2.3519,227.97,227.82,2.4072]
[1733193477692,2.194,227.86,227.82,2.4072]
[1733193477898,2.194,227.86,227.75,4.7985]
[1733193478298,2.194,227.86,227.77,2.1948]
[1733193478801,2.194,227.86,227.75,4.7985]
[1733193478802,2.9,227.9,227.75,4.7985]
[1733193478997,2.9,227.9,227.7,2.9]
[1733193479199,2.9,227.9,227.75,16.302193]
[1733193479601,2.1944,227.82,227.75,16.302193]
[1733193479797,2.9,227.83,227.75,16.302193]
[1733193480597,2.1948,227.78,227.69,2.1956]
[1733193480801,2.9,227.77,227.72,16.302193]
[1733193480998,2.9,227.76,227.72,16.302193]
[1733193481196,45.66,227.92,227.73,2.1952]
[1733193481197,2.9,227.8,227.73,2.1952]
[1733193481400,2.9,227.8,227.79,16.302193]
[1733193483706,2.9,227.8,227.75,16.302193]
[1733193483707,5.0946,227.8,227.75,16.302193]
[1733193484009,2.9,227.96,227.79,16.302193]
[1733193484201,2.9,227.96,227.88,16.302193]
[1733193485509,2.9,227.96,227.84,16.302193]
[1733193485709,2.1937,227.89,227.84,16.302193]
[1733193486101,2.9,227.9,227.84,16.302193]
[1733193487307,2.1929,227.98,227.89,2.1936]
[1733193487511,3.02,228.03,227.96,16.302193]
[1733193487705,3.02,228.02,227.96,16.302193]
[1733193487903,2.1928,227.98,227.96,16.302193]
[1733193489519,20.10881613,228.2,227.96,16.302193]
[1733193489723,3.02,228.19,228.01,16.302193]
[1733193490612,2.192,228.07,228.01,16.302193]
[1733193491318,3.0,228.08,227.97,16.302193]
[1733193492420,2.1925,228.02,227.97,16.302193]
[1733193495120,2.1928,227.99,227.97,16.302193]
[1733193495622,3.0,228.01,227.93,16.302193]
[1733193495924,3.2,228.06,227.97,16.302193]
[1733193496116,2.1926,228.0,227.97,16.302193]
[1733193496321,3.2,228.04,227.97,16.302193]
[1733193496617,3.2,228.03,227.97,16.302193]
[1733193496923,3.2,228.04,227.97,16.302193]
[1733193497921,2.1926,228.01,227.97,16.302193]
[1733193499326,3.2,228.09,227.97,16.302193]
[1733193500228,2.1924,228.02,227.97,16.302193]
[1733193501727,2.1925,228.01,227.97,16.302193]
[1733193502324,2.1921,228.06,228.0,2.1926]
[1733193502524,2.1921,228.06,227.92,21.69453641]
[1733193502525,306.15074121,228.25,228.05,16.302193]
[1733193502731,0.57318,228.21,228.12,16.302193]
[1733193503127,3.2,228.2,228.12,16.302193]
[1733193503629,2.1913,228.14,228.12,16.302193]
[1733193503930,3.2,228.2,228.12,16.302193]
[1733193505123,2.1912,228.15,228.12,16.302193]
[1733193505329,3.2,228.2,228.08,16.302193]
[1733193505531,2.1914,228.13,228.08,16.302193]
[1733193505726,3.2,228.2,228.08,16.302193]
[1733193506332,0.57318,228.21,228.14,16.302193]
[1733193508136,0.57318,228.21,228.1,16.302193]
[1733193509134,2.1914,228.13,228.1,16.302193]
[1733193509329,0.57318,228.21,228.1,16.302193]
[1733193509330,3.2,228.16,228.1,16.302193]
[1733193509931,2.1914,228.13,228.1,16.302193]
[1733193512337,2.1915,228.12,228.06,18.494193]
[1733193512537,3.2,228.16,228.07,2.1919]
[1733193513739,0.57318,228.21,228.14,16.302193]
[1733193513940,0.57318,228.21,228.18,16.302193]
[1733193514235,0.57318,228.21,228.18,18.493093]
[1733193514439,0.57318,228.21,228.18,16.302193]
[1733193514933,3.2,228.28,228.18,16.302193]
[1733193514934,3.2,228.32,228.18,16.302193]
[1733193516042,2.1902,228.25,228.18,16.302193]
[1733193516229,3.2,228.32,228.18,16.302193]
[1733193518640,2.1905,228.22,228.18,16.302193]
[1733193519532,3.2,228.4,228.18,16.302193]
[1733193519738,3.2,228.4,228.25,16.302193]
[1733193520336,3.2,228.4,228.21,16.302193]
[1733193521232,16.302193,228.37,228.21,16.302193]
[1733193521435,16.302193,228.37,228.18,2.5305]
[1733193522541,2.1896,228.32,228.18,2.5305]
[1733193522739,3.2,228.31,228.21,16.302193]
[1733193523043,3.2,228.3,228.21,16.302193]
[1733193523244,2.1904,228.23,228.21,16.302193]
[1733193524041,3.2,228.3,228.21,16.302193]
[1733193524933,3.2,228.3,227.93,15.40329269]
[1733193525138,3.2,228.3,228.12,16.302193]
[1733193525342,3.2,228.3,228.16,16.302193]
[1733193525741,2.1909,228.18,228.16,16.302193]
[1733193527638,3.14,228.22,228.16,16.302193]
[1733193528343,2.1909,228.19,228.16,16.302193]
[1733193529241,2.1909,228.18,228.16,16.302193]
[1733193529440,3.14,228.22,228.16,16.302193]
[1733193529839,2.191,228.18,228.16,16.302193]
[1733193530045,3.14,228.22,228.09,2.1917]
[1733193530245,3.14,228.22,228.13,16.302193]
[1733193530743,3.14,228.27,228.17,16.302193]
[1733193531640,2.1908,228.2,228.17,16.302193]
[1733193531837,3.14,228.27,228.17,16.302193]
[1733193532447,2.1908,228.19,228.17,16.302193]
[1733193535050,2.1903,228.24,228.17,16.302193]
[1733193535351,3.14,228.27,228.17,16.302193]
[1733193535852,2.1909,228.18,228.17,16.302193]
[1733193536642,2.1912,228.15,228.13,16.302193]
[1733193536952,3.14,228.2,228.13,16.302193]
[1733193537555,2.7274,228.26,228.17,16.302193]
[1733193537758,3.14,228.25,228.12,16.302193]
[1733193538157,2.191,228.17,228.16,16.302193]
[1733193538456,3.14,228.25,228.16,16.302193]
[1733193538855,3.14,228.24,228.16,16.302193]
[1733193539152,2.191,228.17,228.16,16.302193]
[1733193539357,3.14,228.24,228.16,16.302193]
[1733193540055,3.14,228.23,228.16,16.302193]
[1733193540753,2.191,228.17,228.16,16.302193]
[1733193546854,5.5057,228.29,228.16,16.302193]
[1733193547050,3.14,228.27,228.22,16.302193]
[1733193547758,3.14,228.27,228.25,10.14170256]
[1733193547960,3.14,228.27,228.22,10.14170256]
[1733193548557,2.1904,228.23,228.22,10.14170256]
[1733193550964,2.1907,228.2,228.19,10.14170256]
[1733193551558,3.14,228.26,228.19,10.14170256]
[1733193551856,3.14,228.31,228.24,10.14170256]